fUSD/lending_fUSD_20240301
["ID","MTS","AMOUNT","RATE_DAILY","PERIOD"]
[316034175,1709329854997,-558.92,0.00022027,2]
[316034176,1709329855007,-500.0,0.00022027,2]
[316034177,1709329855016,-500.0,0.00022027,2]
[316034178,1709329855025,-500.0,0.00022027,2]
[316034179,1709329855035,-1097.63,0.00022027,2]
[316034180,1709329855047,-500.0,0.00022027,2]
[316034181,1709329855057,-741.98,0.00022027,2]
[316034182,1709329855067,-744.7,0.00022027,2]
[316034183,1709329855076,-631.06,0.00022027,2]
[316034184,1709329855085,-500.0,0.00022027,2]
[316034185,1709329855095,-500.0,0.00022027,2]
[316034186,1709329855106,-500.0,0.00022027,2]
[316034187,1709329855115,-500.0,0.00022027,2]
[316034188,1709329855125,-2070.65,0.00022027,2]
[316034189,1709329855134,-247.65940574,0.00022027,2]
[316034190,1709329855143,-500.0,0.00022027,2]
[316034191,1709329855152,-760.9,0.00022027,2]
[316034192,1709329855162,-684.4,0.00022027,2]
[316034193,1709329855171,-500.0,0.00022027,2]
[316034194,1709329855180,-722.67,0.00022027,2]
[316034195,1709329855189,-500.0,0.00022027,2]
[316034196,1709329855199,-1373.74,0.00022027,2]
[316034197,1709329855210,-500.0,0.00022027,2]
[316034198,1709329855220,-500.0,0.00022027,2]
[316034199,1709329855229,-500.0,0.00022027,2]
[316034200,1709329855239,-500.0,0.00022027,2]
[316034201,1709329855248,-500.0,0.00022027,2]
[316034202,1709329855258,-500.0,0.00022027,2]
[316034203,1709329855267,-3986.3,0.00022027,2]
[316034204,1709329855276,-500.0,0.00022027,2]
[316034205,1709329855285,-1536.66,0.00022027,2]
[316034206,1709329855295,-5704.02,0.00022027,2]
[316034207,1709329855304,-2939.1,0.00022027,2]
[316034208,1709329855313,-447.90020269,0.00022027,2]
[316034209,1709329855323,-6997.69,0.00022027,2]
[316034210,1709329855332,-1390.92,0.00022027,2]
[316034211,1709329855341,-500.0,0.00022027,2]
[316034212,1709329855350,-500.0,0.00022027,2]
[316034213,1709329855360,-4442.43,0.00022027,2]
[316034214,1709329855370,-500.0,0.00022027,2]
[316034215,1709329855379,-2228.9,0.00022027,2]
[316034216,1709329855388,-500.0,0.00022027,2]
[316034217,1709329855398,-1976.49,0.00022027,2]
[316034218,1709329855407,-3123.93,0.00022027,2]
[316034219,1709329855417,-500.0,0.00022027,2]
[316034220,1709329855427,-479.4534293,0.00022027,2]
[316034221,1709329855436,-1147.94,0.00022027,2]
[316034222,1709329855450,-500.0,0.00022027,2]
[316034223,1709329855460,-20416.4,0.00022027,2]
[316034224,1709329855469,-500.0,0.00022027,2]
[316034225,1709329855478,-500.0,0.00022027,2]
[316034226,1709329855488,-585.63,0.00022027,2]
[316034227,1709329855497,-500.0,0.00022027,2]
[316034228,1709329855506,-500.0,0.00022027,2]
[316034229,1709329855515,-9797.77,0.00022027,2]
[316034230,1709329855526,-500.0,0.00022027,2]
[316034231,1709329855536,-650.69,0.00022027,2]
[316034232,1709329855545,-6799.24,0.00022027,2]
[316034233,1709329855554,-500.0,0.00022027,2]
[316034234,1709329855564,-500.0,0.00022027,2]
[316034235,1709329855574,-1385.03,0.00022027,2]
[316034236,1709329855583,-500.0,0.00022027,2]
[316034237,1709329855592,-500.0,0.00022027,2]
[316034238,1709329855602,-2124.38,0.00022027,2]
[316034239,1709329855611,-694.46,0.00022027,2]
[316034240,1709329855621,-500.0,0.00022027,2]
[316034241,1709329855630,-500.0,0.00022027,2]
[316034242,1709329855640,-614.08,0.00022027,2]
[316034243,1709329855649,-2499.33,0.00022027,2]
[316034244,1709329855659,-500.0,0.00022027,2]
[316034245,1709329855668,-500.0,0.00022027,2]
[316034246,1709329855677,-3910.29,0.00022027,2]
[316034247,1709329855686,-500.0,0.00022027,2]
[316034248,1709329855695,-159.38,0.00022032,2]
[316034249,1709329855704,-245000.0,0.00022036,2]
[316034250,1709329855713,-1000.0,0.00022036,2]
[316034251,1709329855722,-10000.0,0.000221,2]
[316034252,1709329855732,-200.0,0.00022122,2]
[316034253,1709329855741,-152.85030093,0.00022123,2]
[316034254,1709329855750,-523.1887831,0.00022126,2]
[316034255,1709329855759,-413.8,0.00022133,2]
[316034256,1709329855768,-300.0,0.00022133,2]
[316034257,1709329855777,-150.0,0.00022133,2]
[316034258,1709329855787,-150.0,0.00022133,2]
[316034259,1709329855796,-500.0,0.00022136,2]
[316034260,1709329855805,-500.0,0.00022136,2]
[316034261,1709329855814,-500.0,0.00022136,2]
[316034262,1709329855823,-500.0,0.00022136,2]
[316034263,1709329855832,-500.0,0.00022136,2]
[316034264,1709329855841,-500.0,0.00022136,2]
[316034265,1709329855851,-549.26031587,0.00022136,2]
[316034266,1709329855860,-500.0,0.00022136,2]
[316034267,1709329855869,-501.63276446,0.00022136,2]
[316034268,1709329855878,-151.11854752,0.00022136,2]
[316034269,1709329855888,-500.0,0.00022136,2]
[316034270,1709329855897,-500.0,0.00022136,2]
[316034271,1709329855906,-500.0,0.00022136,2]
[316034272,1709329855915,-500.0,0.00022136,2]
[316034273,1709329855925,-500.0,0.00022136,2]
[316034274,1709329855934,-540.53615792,0.00022136,2]
[316034275,1709329855943,-500.0,0.00022136,2]
[316034276,1709329855952,-500.0,0.00022136,2]
[316034277,1709329855961,-500.0,0.00022136,2]
[316034278,1709329855970,-162.68578109,0.00022136,2]
[316034279,1709329855979,-500.0,0.00022136,2]
[316034280,1709329855988,-500.0,0.00022136,2]
[316034281,1709329855997,-500.0,0.00022136,2]
[316034282,1709329856006,-500.0,0.00022136,2]
[316034283,1709329856016,-500.0,0.00022136,2]
[316034284,1709329856025,-500.0,0.00022136,2]
[316034285,1709329856034,-500.0,0.00022136,2]
[316034286,1709329856043,-500.0,0.00022136,2]
[316034287,1709329856053,-500.0,0.00022136,2]
[316034288,1709329856062,-500.0,0.00022136,2]
[316034289,1709329856072,-500.0,0.00022136,2]
[316034290,1709329856081,-500.0,0.00022136,2]
[316034291,1709329856090,-500.0,0.00022136,2]
[316034292,1709329856100,-500.0,0.00022136,2]
[316034293,1709329856109,-500.0,0.00022136,2]
[316034294,1709329856118,-500.0,0.00022136,2]
[316034295,1709329856128,-500.0,0.00022136,2]
[316034296,1709329856137,-419.5787305,0.00022136,2]
[316034297,1709329856146,-178.53270218,0.00022136,2]
[316034298,1709329856155,-500.0,0.00022136,2]
[316034299,1709329856165,-500.0,0.00022136,2]
[316034300,1709329856174,-500.0,0.00022136,2]
[316034301,1709329856183,-500.0,0.00022136,2]
[316034302,1709329856193,-500.0,0.00022136,2]
[316034303,1709329856203,-500.0,0.00022136,2]
[316034304,1709329856211,-648.85,0.00022136,2]
[316034305,1709329856221,-500.0,0.00022136,2]
[316034306,1709329856231,-500.0,0.00022136,2]
[316034307,1709329856240,-500.0,0.00022136,2]
[316034308,1709329856249,-500.0,0.00022136,2]
[316034309,1709329856259,-548.39,0.00022136,2]
[316034310,1709329856268,-500.0,0.00022136,2]
[316034311,1709329856278,-500.0,0.00022136,2]
[316034312,1709329856288,-500.0,0.00022136,2]
[316034313,1709329856297,-500.0,0.00022136,2]
[316034314,1709329856307,-500.0,0.00022136,2]
[316034315,1709329856316,-500.0,0.00022136,2]
[316034316,1709329856325,-500.0,0.00022136,2]
[316034317,1709329856335,-500.0,0.00022136,2]
[316034318,1709329856344,-500.0,0.00022136,2]
[316034319,1709329856353,-500.0,0.00022136,2]
[316034320,1709329856362,-500.0,0.00022136,2]
[316034321,1709329856371,-547.18,0.00022136,2]
[316034322,1709329856381,-500.0,0.00022136,2]
[316034323,1709329856390,-500.0,0.00022136,2]
[316034324,1709329856400,-500.0,0.00022136,2]
[316034325,1709329856408,-500.0,0.00022136,2]
[316034326,1709329856418,-500.0,0.00022136,2]
[316034327,1709329856427,-500.0,0.00022136,2]
[316034328,1709329856437,-500.0,0.00022136,2]
[316034329,1709329856449,-500.0,0.00022136,2]
[316034330,1709329856461,-500.0,0.00022136,2]
[316034331,1709329856470,-500.0,0.00022136,2]
[316034332,1709329856480,-205.21733321,0.00022136,2]
[316034333,1709329856490,-500.0,0.00022136,2]
[316034334,1709329856500,-500.0,0.00022136,2]
[316034335,1709329856509,-500.0,0.00022136,2]
[316034336,1709329856519,-500.0,0.00022136,2]
[316034337,1709329856528,-500.0,0.00022136,2]
[316034338,1709329856537,-176.47438126,0.00022136,2]
[316034339,1709329856546,-500.0,0.00022136,2]
[316034340,1709329856555,-500.0,0.00022136,2]
[316034341,1709329856565,-500.0,0.00022136,2]
[316034342,1709329856574,-500.0,0.00022136,2]
[316034343,1709329856585,-500.0,0.00022136,2]
[316034344,1709329856594,-500.0,0.00022136,2]
[316034345,1709329856603,-560.2,0.00022136,2]
[316034346,1709329856613,-712.48,0.00022136,2]
[316034347,1709329856623,-500.0,0.00022136,2]
[316034348,1709329856632,-500.0,0.00022136,2]
[316034349,1709329856641,-572.58,0.00022136,2]
[316034350,1709329856650,-583.5,0.00022136,2]
[316034351,1709329856659,-885.54,0.00022136,2]
[316034352,1709329856669,-500.0,0.00022136,2]
[316034353,1709329856678,-641.34,0.00022136,2]
[316034354,1709329856687,-500.0,0.00022136,2]
[316034355,1709329856696,-500.0,0.00022136,2]
[316034356,1709329856707,-541.37,0.00022136,2]
[316034357,1709329856716,-500.0,0.00022136,2]
[316034358,1709329856724,-500.0,0.00022136,2]
[316034359,1709329856733,-500.0,0.00022136,2]
[316034360,1709329856743,-665.0,0.00022136,2]
[316034361,1709329856753,-500.0,0.00022136,2]
[316034362,1709329856762,-500.0,0.00022136,2]
[316034363,1709329856771,-500.0,0.00022136,2]
[316034364,1709329856780,-500.0,0.00022136,2]
[316034365,1709329856790,-500.0,0.00022136,2]
[316034366,1709329856799,-500.0,0.00022136,2]
[316034367,1709329856808,-729.93,0.00022136,2]
[316034368,1709329856818,-500.0,0.00022136,2]
[316034369,1709329856827,-500.0,0.00022136,2]
[316034370,1709329856836,-500.0,0.00022136,2]
[316034371,1709329856845,-661.91,0.00022136,2]
[316034372,1709329856854,-593.69,0.00022136,2]
[316034373,1709329856863,-500.0,0.00022136,2]
[316034374,1709329856873,-500.0,0.00022136,2]
[316034375,1709329856884,-500.0,0.00022136,2]
[316034376,1709329856893,-422.9,0.00022136,2]
[316034377,1709329856903,-500.0,0.00022136,2]
[316034378,1709329856912,-500.0,0.00022136,2]
[316034379,1709329856921,-1167.66,0.00022136,2]
[316034380,1709329856930,-707.97,0.00022136,2]
[316034381,1709329856940,-500.0,0.00022136,2]
[316034382,1709329856950,-500.0,0.00022136,2]
[316034383,1709329856961,-500.0,0.00022136,2]
[316034384,1709329856971,-782.5,0.00022136,2]
[316034385,1709329856981,-500.0,0.00022136,2]
[316034386,1709329856990,-500.0,0.00022136,2]
[316034387,1709329856999,-500.0,0.00022136,2]
[316034388,1709329857008,-500.0,0.00022136,2]
[316034389,1709329857018,-500.0,0.00022136,2]
[316034390,1709329857027,-500.0,0.00022136,2]
[316034391,1709329857037,-363.92,0.00022136,2]
[316034392,1709329857046,-751.17,0.00022136,2]
[316034393,1709329857056,-500.0,0.00022136,2]
[316034394,1709329857065,-500.0,0.00022136,2]
[316034395,1709329857074,-500.0,0.00022136,2]
[316034396,1709329857084,-612.37043018,0.00022136,2]
[316034397,1709329857094,-500.0,0.00022136,2]
[316034398,1709329857103,-500.0,0.00022136,2]
[316034399,1709329857112,-500.0,0.00022136,2]
[316034400,1709329857121,-500.0,0.00022136,2]
[316034401,1709329857131,-500.0,0.00022136,2]
[316034402,1709329857140,-500.0,0.00022136,2]
[316034403,1709329857149,-518.47626763,0.00022136,2]
[316034404,1709329857159,-500.0,0.00022136,2]
[316034405,1709329857168,-500.0,0.00022136,2]
[316034406,1709329857177,-500.0,0.00022136,2]
[316034407,1709329857187,-500.0,0.00022136,2]
[316034408,1709329857197,-506.58,0.00022136,2]
[316034409,1709329857208,-500.0,0.00022136,2]
[316034410,1709329857217,-500.0,0.00022136,2]
[316034411,1709329857226,-500.0,0.00022136,2]
[316034412,1709329857235,-500.0,0.00022136,2]
[316034413,1709329857244,-626.28,0.00022136,2]
[316034414,1709329857254,-514.76,0.00022136,2]
[316034415,1709329857263,-339.68871715,0.00022136,2]
[316034416,1709329857272,-500.0,0.00022136,2]
[316034417,1709329857283,-500.0,0.00022136,2]
[316034418,1709329857292,-500.0,0.00022136,2]
[316034419,1709329857301,-658.49,0.00022136,2]
[316034420,1709329857311,-500.0,0.00022136,2]
[316034421,1709329857320,-500.0,0.00022136,2]
[316034422,1709329857330,-500.0,0.00022136,2]
[316034423,1709329857339,-500.0,0.00022136,2]
[316034424,1709329857349,-500.0,0.00022136,2]
[316034425,1709329857359,-500.0,0.00022136,2]
[316034426,1709329857368,-500.0,0.00022136,2]
[316034427,1709329857377,-500.0,0.00022136,2]
[316034428,1709329857386,-500.0,0.00022136,2]
[316034429,1709329857395,-500.0,0.00022136,2]
[316034430,1709329857405,-654.07,0.00022136,2]
[316034431,1709329857414,-632.31,0.00022136,2]
[316034432,1709329857424,-500.0,0.00022136,2]
[316034433,1709329857433,-500.0,0.00022136,2]
[316034434,1709329857443,-566.35,0.00022136,2]
[316034435,1709329857454,-500.0,0.00022136,2]
[316034436,1709329857464,-500.0,0.00022136,2]
[316034437,1709329857473,-500.0,0.00022136,2]
[316034438,1709329857482,-500.0,0.00022136,2]
[316034439,1709329857494,-500.0,0.00022136,2]
[316034440,1709329857503,-500.0,0.00022136,2]
[316034441,1709329857512,-776.51,0.00022136,2]
[316034442,1709329857521,-503.96,0.00022136,2]
[316034443,1709329857531,-500.0,0.00022136,2]
[316034444,1709329857541,-500.0,0.00022136,2]
[316034445,1709329857550,-1052.06,0.00022136,2]
[316034446,1709329857560,-500.0,0.00022136,2]
[316034447,1709329857569,-500.0,0.00022136,2]
[316034448,1709329857578,-543.2337325,0.00022136,2]
[316034449,1709329857587,-500.0,0.00022136,2]
[316034450,1709329857597,-500.0,0.00022136,2]
[316034451,1709329857607,-500.0,0.00022136,2]
[316034452,1709329857617,-500.0,0.00022136,2]
[316034453,1709329857627,-159.06,0.00022136,2]
[316034454,1709329857636,-500.0,0.00022136,2]
[316034455,1709329857646,-500.0,0.00022136,2]
[316034456,1709329857655,-500.0,0.00022136,2]
[316034457,1709329857664,-500.0,0.00022136,2]
[316034458,1709329857673,-500.0,0.00022136,2]
[316034459,1709329857682,-500.0,0.00022136,2]
[316034460,1709329857691,-500.0,0.00022136,2]
[316034461,1709329857700,-500.0,0.00022136,2]
[316034462,1709329857711,-500.0,0.00022136,2]
[316034463,1709329857721,-500.0,0.00022136,2]
[316034464,1709329857730,-500.0,0.00022136,2]
[316034465,1709329857740,-500.0,0.00022136,2]
[316034466,1709329857749,-527.48565291,0.00022136,2]
[316034467,1709329857759,-500.0,0.00022136,2]
[316034468,1709329857769,-500.0,0.00022136,2]
[316034469,1709329857778,-500.0,0.00022136,2]
[316034470,1709329857787,-500.0,0.00022136,2]
[316034471,1709329857796,-500.0,0.00022136,2]
[316034472,1709329857805,-500.0,0.00022136,2]
[316034473,1709329857815,-500.0,0.00022136,2]
[316034474,1709329857824,-519.37,0.00022136,2]
[316034475,1709329857833,-500.0,0.00022136,2]
[316034476,1709329857843,-500.0,0.00022136,2]
[316034477,1709329857853,-500.0,0.00022136,2]
[316034478,1709329857861,-1193.37,0.00022136,2]
[316034479,1709329857871,-500.0,0.00022136,2]
[316034480,1709329857880,-565.38498413,0.00022136,2]
[316034481,1709329857889,-533.86,0.00022136,2]
[316034482,1709329857898,-500.0,0.00022136,2]
[316034483,1709329857907,-975.14,0.00022136,2]
[316034484,1709329857917,-500.0,0.00022136,2]
[316034485,1709329857926,-518.83756174,0.00022136,2]
[316034486,1709329857935,-500.0,0.00022136,2]
[316034487,1709329857944,-609.74,0.00022136,2]
[316034488,1709329857953,-500.0,0.00022136,2]
[316034489,1709329857963,-973.47,0.00022136,2]
[316034490,1709329857972,-500.0,0.00022136,2]
[316034491,1709329857981,-500.0,0.00022136,2]
[316034492,1709329857991,-500.0,0.00022136,2]
[316034493,1709329858000,-1798.71,0.00022136,2]
[316034494,1709329858009,-500.0,0.00022136,2]
[316034495,1709329858019,-500.0,0.00022136,2]
[316034496,1709329858029,-6097.19,0.00022136,2]
[316034497,1709329858038,-1033.26,0.00022136,2]
[316034498,1709329858047,-536.44,0.00022136,2]
[316034499,1709329858057,-500.0,0.00022136,2]
[316034500,1709329858067,-2782.12,0.00022136,2]
[316034501,1709329858078,-500.0,0.00022136,2]
[316034502,1709329858088,-630.64,0.00022136,2]
[316034503,1709329858099,-500.0,0.00022136,2]
[316034504,1709329858109,-960.18,0.00022136,2]
[316034505,1709329858120,-500.0,0.00022136,2]
[316034506,1709329858130,-500.0,0.00022136,2]
[316034507,1709329858139,-500.0,0.00022136,2]
[316034508,1709329858149,-500.0,0.00022136,2]
[316034509,1709329858159,-500.0,0.00022136,2]
[316034510,1709329858169,-4675.12,0.00022136,2]
[316034511,1709329858179,-573.94,0.00022136,2]
[316034512,1709329858189,-500.0,0.00022136,2]
[316034513,1709329858199,-1664.27,0.00022136,2]
[316034514,1709329858212,-500.0,0.00022136,2]
[316034515,1709329858222,-638.89,0.00022136,2]
[316034516,1709329858232,-517.54,0.00022136,2]
[316034517,1709329858242,-647.88,0.00022136,2]
[316034518,1709329858252,-500.0,0.00022136,2]
[316034519,1709329858262,-500.0,0.00022136,2]
[316034520,1709329858273,-500.0,0.00022136,2]
[316034521,1709329858284,-736.08,0.00022136,2]
[316034522,1709329858294,-500.0,0.00022136,2]
[316034523,1709329858304,-500.0,0.00022136,2]
[316034524,1709329858314,-500.0,0.00022136,2]
[316034525,1709329858324,-510.21455568,0.00022136,2]
[316034526,1709329858335,-2492.6,0.00022136,2]
[316034527,1709329858346,-500.0,0.00022136,2]
[316034528,1709329858356,-1775.86,0.00022136,2]
[316034529,1709329858367,-429.06124847,0.00022136,2]
[316034530,1709329858377,-14638.31,0.00022136,2]
[316034531,1709329858387,-500.0,0.00022136,2]
[316034532,1709329858397,-497.69234861,0.00022136,2]
[316034533,1709329858407,-500.0,0.00022136,2]
[316034534,1709329858418,-500.0,0.00022136,2]
[316034535,1709329858429,-500.0,0.00022136,2]
[316034536,1709329858439,-500.0,0.00022136,2]
[316034537,1709329858452,-1622.72,0.00022136,2]
[316034538,1709329858465,-755.42,0.00022136,2]
[316034539,1709329858476,-2036.03,0.00022136,2]
[316034540,1709329858486,-500.0,0.00022136,2]
[316034541,1709329858496,-500.0,0.00022136,2]
[316034542,1709329858507,-500.0,0.00022136,2]
[316034543,1709329858518,-11286.34,0.00022136,2]
[316034544,1709329858530,-15703.3,0.00022136,2]
[316034545,1709329858540,-500.0,0.00022136,2]
[316034546,1709329858550,-500.0,0.00022136,2]
[316034547,1709329858560,-500.0,0.00022136,2]
[316034548,1709329858570,-584.15,0.00022136,2]
[316034549,1709329858580,-500.0,0.00022136,2]
[316034550,1709329858589,-500.0,0.00022136,2]
[316034551,1709329858599,-519.58303622,0.00022136,2]
[316034552,1709329858609,-500.0,0.00022136,2]
[316034553,1709329858620,-1103.17,0.00022136,2]
[316034554,1709329858631,-500.0,0.00022136,2]
[316034555,1709329858640,-500.0,0.00022136,2]
[316034556,1709329858650,-500.0,0.00022136,2]
[316034557,1709329858660,-500.0,0.00022136,2]
[316034558,1709329858671,-500.0,0.00022136,2]
[316034559,1709329858681,-2906.49,0.00022136,2]
[316034560,1709329858691,-684.24,0.00022136,2]
[316034561,1709329858701,-500.0,0.00022136,2]
[316034562,1709329858715,-500.0,0.00022136,2]
[316034563,1709329858725,-500.0,0.00022136,2]
[316034564,1709329858735,-500.0,0.00022136,2]
[316034565,1709329858745,-500.0,0.00022136,2]
[316034566,1709329858755,-500.0,0.00022136,2]
[316034567,1709329858765,-500.0,0.00022136,2]
[316034568,1709329858775,-606.30227656,0.00022136,2]
[316034569,1709329858785,-823.97,0.00022136,2]
[316034570,1709329858795,-690.14,0.00022136,2]
[316034571,1709329858805,-504.17865822,0.00022136,2]
[316034572,1709329858815,-500.0,0.00022136,2]
[316034573,1709329858825,-500.0,0.00022136,2]
[316034574,1709329858835,-731.85,0.00022136,2]
[316034575,1709329858845,-500.0,0.00022136,2]
[316034576,1709329858855,-500.0,0.00022136,2]
[316034577,1709329858865,-1083.04,0.00022136,2]
[316034578,1709329858875,-461.31483873,0.00022136,2]
[316034579,1709329858886,-500.0,0.00022136,2]
[316034580,1709329858896,-500.0,0.00022136,2]
[316034581,1709329858905,-4433.84,0.00022136,2]
[316034582,1709329858915,-500.0,0.00022136,2]
[316034583,1709329858925,-463.62916452,0.00022136,2]
[316034584,1709329858934,-500.0,0.00022136,2]
[316034585,1709329858944,-500.0,0.00022136,2]
[316034586,1709329858953,-2409.57,0.00022136,2]
[316034587,1709329858965,-603.39710759,0.00022136,2]
[316034588,1709329858974,-500.0,0.00022136,2]
[316034589,1709329858984,-500.0,0.00022136,2]
[316034590,1709329858993,-500.0,0.00022136,2]
[316034591,1709329859003,-793.07,0.00022136,2]
[316034592,1709329859013,-500.0,0.00022136,2]
[316034593,1709329859023,-500.0,0.00022136,2]
[316034594,1709329859032,-671.66,0.00022136,2]
[316034595,1709329859042,-500.0,0.00022136,2]
[316034596,1709329859052,-500.0,0.00022136,2]
[316034597,1709329859062,-500.0,0.00022136,2]
[316034598,1709329859071,-500.0,0.00022136,2]
[316034599,1709329859081,-598.03,0.00022136,2]
[316034600,1709329859092,-500.0,0.00022136,2]
[316034601,1709329859102,-906.18,0.00022136,2]
[316034602,1709329859112,-500.0,0.00022136,2]
[316034603,1709329859122,-500.0,0.00022136,2]
[316034604,1709329859132,-500.0,0.00022136,2]
[316034605,1709329859141,-500.0,0.00022136,2]
[316034606,1709329859151,-500.0,0.00022136,2]
[316034607,1709329859161,-500.0,0.00022136,2]
[316034608,1709329859171,-1022.79,0.00022136,2]
[316034609,1709329859180,-500.0,0.00022136,2]
[316034610,1709329859190,-500.0,0.00022136,2]
[316034611,1709329859200,-500.0,0.00022136,2]
[316034612,1709329859212,-500.0,0.00022136,2]
[316034613,1709329859222,-500.0,0.00022136,2]
[316034614,1709329859232,-1867.58,0.00022136,2]
[316034615,1709329859241,-500.0,0.00022136,2]
[316034616,1709329859251,-1009.37,0.00022136,2]
[316034617,1709329859261,-500.0,0.00022136,2]
[316034618,1709329859271,-525.92496157,0.00022136,2]
[316034619,1709329859280,-500.0,0.00022136,2]
[316034620,1709329859291,-500.0,0.00022136,2]
[316034621,1709329859300,-500.0,0.00022136,2]
[316034622,1709329859310,-500.0,0.00022136,2]
[316034623,1709329859320,-500.0,0.00022136,2]
[316034624,1709329859331,-510.11455948,0.00022136,2]
[316034625,1709329859341,-524.39718522,0.00022136,2]
[316034626,1709329859351,-500.0,0.00022136,2]
[316034627,1709329859360,-690.45,0.00022136,2]
[316034628,1709329859370,-500.0,0.00022136,2]
[316034629,1709329859379,-500.0,0.00022136,2]
[316034630,1709329859389,-500.0,0.00022136,2]
[316034631,1709329859399,-500.0,0.00022136,2]
[316034632,1709329859409,-570.01,0.00022136,2]
[316034633,1709329859419,-582.33,0.00022136,2]
[316034634,1709329859430,-500.0,0.00022136,2]
[316034635,1709329859441,-500.0,0.00022136,2]
[316034636,1709329859451,-1085.93,0.00022136,2]
[316034637,1709329859461,-500.0,0.00022136,2]
[316034638,1709329859471,-500.0,0.00022136,2]
[316034639,1709329859481,-8957.25,0.00022136,2]
[316034640,1709329859491,-500.0,0.00022136,2]
[316034641,1709329859501,-500.0,0.00022136,2]
[316034642,1709329859511,-500.0,0.00022136,2]
[316034643,1709329859522,-500.0,0.00022136,2]
[316034644,1709329859532,-500.0,0.00022136,2]
[316034645,1709329859542,-500.0,0.00022136,2]
[316034646,1709329859552,-500.0,0.00022136,2]
[316034647,1709329859562,-652.7,0.00022136,2]
[316034648,1709329859571,-500.0,0.00022136,2]
[316034649,1709329859581,-500.0,0.00022136,2]
[316034650,1709329859590,-500.0,0.00022136,2]
[316034651,1709329859600,-828.42,0.00022136,2]
[316034652,1709329859610,-628.37,0.00022136,2]
[316034653,1709329859620,-500.0,0.00022136,2]
[316034654,1709329859630,-500.0,0.00022136,2]
[316034655,1709329859640,-1936.54,0.00022136,2]
[316034656,1709329859650,-500.0,0.00022136,2]
[316034657,1709329859660,-583.82,0.00022136,2]
[316034658,1709329859670,-251.78,0.00022136,2]
[316034659,1709329859679,-2309.27,0.00022136,2]
[316034660,1709329859689,-381.74161706,0.00022136,2]
[316034661,1709329859699,-500.0,0.00022136,2]
[316034662,1709329859709,-772.94,0.00022136,2]
[316034663,1709329859719,-500.0,0.00022136,2]
[316034664,1709329859729,-500.0,0.00022136,2]
[316034665,1709329859739,-1383.28,0.00022136,2]
[316034666,1709329859748,-500.0,0.00022136,2]
[316034667,1709329859758,-500.0,0.00022136,2]
[316034668,1709329859768,-648.79,0.00022136,2]
[316034669,1709329859778,-500.0,0.00022136,2]
[316034670,1709329859787,-500.0,0.00022136,2]
[316034671,1709329859797,-500.0,0.00022136,2]
[316034672,1709329859807,-500.0,0.00022136,2]
[316034673,1709329859817,-1119.59,0.00022136,2]
[316034674,1709329859827,-1107.97,0.00022136,2]